fUSD/lending_fUSD_20240212
["ID","MTS","AMOUNT","RATE_DAILY","PERIOD"]
[313867456,1707759035907,-500.0,0.00024798,2]
[313867458,1707759035918,-500.0,0.00024798,2]
[313867460,1707759035928,-500.0,0.00024798,2]
[313867463,1707759035939,-500.0,0.00024798,2]
[313867465,1707759035950,-500.0,0.00024798,2]
[313867467,1707759035960,-500.0,0.00024798,2]
[313867469,1707759035969,-500.0,0.00024798,2]
[313867471,1707759035978,-500.0,0.00024798,2]
[313867473,1707759035988,-500.0,0.00024798,2]
[313867475,1707759035998,-500.0,0.00024798,2]
[313867477,1707759036007,-254025.98223776,0.00024799,2]
[313867480,1707759036025,-15015.2580036,0.00024799,2]
[313867482,1707759036043,-5442.18539446,0.00024799,2]
[313867485,1707759036055,-230226.015996,0.00024799,2]
[313867487,1707759036067,-15261.79245012,0.00024799,2]
[313867490,1707759036088,-736.58209878,0.00024799,2]
[313867493,1707759036101,-449.57833095,0.00024799,2]
[313867495,1707759036115,-7022.52047064,0.00024799,2]
[313867577,1707759037909,-534215.78173188,0.00024799,2]
[313867580,1707759037919,-402.65729934,0.00024799,2]
[313867583,1707759037929,-167376.4079,0.000248,2]
[313867586,1707759037938,-185.63,0.00024901,2]
[313867589,1707759037948,-416.95,0.00024986,2]
[313867592,1707759037957,-168.26749515,0.00025,2]
[313867595,1707759037967,-1909.40818711,0.00025,2]
[313867598,1707759037977,-305.09660322,0.00025,2]
[313867601,1707759037986,-697.6684985,0.00025,2]
[313867603,1707759037995,-1591.80252541,0.00025,2]
[313867605,1707759038005,-659.33855129,0.00025,2]
[313867607,1707759038014,-938.20137126,0.00025,2]
[313867609,1707759038023,-946.31124793,0.00025,2]
[313867612,1707759038033,-3000.0,0.00025,2]
[313867614,1707759038042,-1250.0,0.00025,3]
[313867616,1707759038052,-267.66635624,0.00025,2]
[313867618,1707759038062,-3000.0,0.0002501,2]
[313867620,1707759038072,-1829.01467717,0.0002502,2]
[313867622,1707759038085,-1170.98532283,0.0002502,2]
[313867624,1707759038095,-891.66467717,0.0002503,2]
[313867627,1707759038116,-2108.33532283,0.0002503,2]
[313867629,1707759038126,-3530.774395,0.0002504,2]
[313867631,1707759038135,-478.0,0.00025049,2]
[313867633,1707759038145,-545.72,0.00025072,2]
[313867635,1707759038155,-500.0,0.00025072,2]
[313867638,1707759038164,-150.0,0.00025072,2]
[313867640,1707759038174,-237.44,0.00025185,2]
[313867642,1707759038183,-800.0,0.00025369,2]
[313867644,1707759038193,-500.0,0.0002558,2]
[313867646,1707759038202,-573.12406925,0.0002558,2]
[313867648,1707759038212,-1879.13,0.0002558,2]
[313867650,1707759038221,-500.0,0.0002558,2]
[313867652,1707759038231,-539.94177101,0.0002558,2]
[313867654,1707759038240,-531.93429366,0.0002558,2]
[313867656,1707759038251,-532.59385143,0.0002558,2]
[313867658,1707759038261,-500.0,0.0002558,2]
[313867660,1707759038271,-529.47175707,0.0002558,2]
[313867662,1707759038281,-421.85142189,0.0002558,2]
[313867664,1707759038290,-500.0,0.0002558,2]
[313867666,1707759038300,-500.0,0.0002558,2]
[313867668,1707759038310,-500.0,0.0002558,2]
[313867670,1707759038319,-514.1186548,0.0002558,2]
[313867671,1707759038328,-500.0,0.0002558,2]
[313867672,1707759038338,-260.33573241,0.0002558,2]
[313867673,1707759038348,-500.0,0.0002558,2]
[313867674,1707759038358,-510.11277945,0.0002558,2]
[313867675,1707759038369,-500.0,0.0002558,2]
[313867676,1707759038379,-500.0,0.0002558,2]
[313867677,1707759038388,-500.0,0.0002558,2]
[313867678,1707759038398,-500.0,0.0002558,2]
[313867679,1707759038407,-261.94468823,0.0002558,2]
[313867680,1707759038417,-200.0,0.0002565,2]
[313867681,1707759038429,-159.14316176,0.00025845,2]
[313867682,1707759038438,-1879.13,0.00025854,2]
[313867683,1707759038447,-206.0,0.00026035,7]
[313867684,1707759038457,-1879.13,0.00026128,2]
[313867685,1707759038466,-5984.90745513,0.00026152,2]
[313867686,1707759038479,-598.24385606,0.00026152,2]
[313867687,1707759038491,-999.74103659,0.00026152,2]
[313867688,1707759038816,-4105.42349265,0.00026152,2]
[313867689,1707759038825,-402.65729933,0.00026152,2]
[313867690,1707759038835,-1879.13,0.00026402,2]
[313867691,1707759038844,-738.93491813,0.00026449,2]
[313867692,1707759038853,-837.06383198,0.00026608,3]
[313867693,1707759038862,-1879.13,0.00026676,2]
[313867694,1707759038874,-478.0,0.00026693,2]
[313867695,1707759038884,-324.62770337,0.00026695,2]
[313867696,1707759038893,-183.08,0.00026754,2]
[313867697,1707759038902,-1879.13,0.0002695,2]
[313867698,1707759038911,-1300.0,0.00027,3]
[313867699,1707759038920,-1879.13,0.00027224,2]
[313867700,1707759038929,-501.74982381,0.00027309,2]
[313867701,1707759038938,-530.0,0.00027397,2]
[313867702,1707759038947,-2000.0,0.000274,2]
[313867703,1707759038956,-948.25,0.000274,2]
[313867704,1707759038965,-948.25,0.000274,2]
[313867705,1707759038974,-948.25,0.000274,2]
[313867706,1707759038983,-948.25,0.000274,2]
[313867707,1707759038992,-948.25,0.000274,2]
[313867708,1707759039001,-948.25,0.000274,2]
[313867709,1707759039010,-948.25,0.000274,2]
[313867710,1707759039019,-237.44,0.00027449,2]
[313867711,1707759039028,-1879.13,0.00027498,2]
[313867712,1707759039038,-1112.14202103,0.00027538,2]
[313867713,1707759039047,-1003.24377195,0.00027538,2]
[313867714,1707759039056,-11688.31584043,0.00027745,2]
[313867715,1707759039066,-402.65729933,0.00027745,2]
[313867716,1707759039076,-1879.13,0.00027772,2]
[313867717,1707759039086,-206.0,0.00027822,10]
[313867718,1707759039095,-948.25,0.0002799,2]
[313867719,1707759039104,-968.65830379,0.00028,2]
[313867720,1707759039114,-88271.32503815,0.00028,2]
[313867721,1707759039123,-155.0,0.00028,2]
[313867722,1707759039132,-1879.13,0.00028046,2]
[313867723,1707759039145,-200.0,0.000281,2]
[313867724,1707759039155,-512.06274968,0.000281,2]
[313867725,1707759039165,-200.0,0.000281,2]
[313867726,1707759039174,-1660.13985037,0.00028165,28]
[313867727,1707759039183,-800.0,0.00028187,2]
[313867728,1707759039193,-738.93491813,0.000282,2]
[313867729,1707759039202,-6166.89761192,0.000283,2]
[313867730,1707759039235,-2764.61801457,0.000283,2]
[313867731,1707759039251,-13123.48437351,0.000283,2]
[313867732,1707759039261,-1879.13,0.0002832,2]
[313867733,1707759039270,-478.0,0.00028337,2]
[313867734,1707759039280,-200.0,0.00028381,2]
[313867735,1707759039289,-200.0,0.00028499,2]
[313867736,1707759039299,-837.06383198,0.00028518,4]
[313867737,1707759039308,-1879.13,0.00028594,2]
[313867738,1707759039317,-150.0,0.00028598,2]
[313867739,1707759039326,-1000.0,0.000288,2]
[313867740,1707759039337,-1879.13,0.00028868,2]
[313867741,1707759039346,-948.25,0.0002899,2]
[313867742,1707759039356,-12769.50222522,0.00029,2]
[313867743,1707759039378,-2141.86916972,0.00029,2]
[313867748,1707759039639,-2458.45786977,0.00029,2]
[313867758,1707759040425,-25000.0,0.00029,2]
[313867765,1707759040494,-318.328976,0.00029,2]
[313867766,1707759040506,-2472.21148771,0.00029,2]
[313867773,1707759045242,-251.11102123,0.00028999,2]
[313867774,1707759045255,-114.8505962,0.00028999,2]
[313867775,1707759045265,-1677.94776701,0.00029,2]
[313867776,1707759045322,-2005.51969029,0.00029,2]
[313867778,1707759045335,-150178.066156,0.00029,2]
[313867779,1707759045347,-978.09665828,0.00029,2]
[313867780,1707759045357,-1350.0,0.00029,3]
[313867782,1707759045367,-159.14316176,0.00029082,2]
[313867785,1707759045391,-1879.13,0.00029142,2]
[313867787,1707759045405,-3917.0,0.000293,2]
[313867789,1707759045415,-7015.40314057,0.00029339,2]
[313867793,1707759045509,-3941.17769691,0.00029339,2]
[313867794,1707759045535,-413.8910008,0.00029339,2]
[313867795,1707759045547,-317.84400215,0.00029339,2]
[313867796,1707759045557,-402.65729933,0.00029339,2]
[313867797,1707759045567,-196.49869852,0.00029416,2]
[313867798,1707759045580,-1682.63130148,0.00029416,2]
[313867799,1707759045590,-72.45708837,0.000295,3]
[313867800,1707759045602,-155.93936603,0.000295,3]
[313867801,1707759045612,-206.0,0.0002961,13]
[313867803,1707759045625,-11.5333066,0.00029611,2]
[313867805,1707759045642,-488.4666934,0.00029611,2]
[313867807,1707759045653,-200.0,0.00029611,2]
[313867808,1707759045663,-1879.13,0.0002969,2]
[313867809,1707759045673,-237.44,0.00029713,2]
[313867810,1707759045685,-176.48526302,0.000298,2]
[313867812,1707759045696,-5000.0,0.000299,2]
[313867813,1707759045706,-251.32678442,0.000299,2]
[313867815,1707759045715,-1060.9297703,0.000299,2]
[313867816,1707759045725,-176.6860352,0.000299,2]
[313867817,1707759045735,-1362.03895574,0.000299,2]
[313867819,1707759045744,-738.93491813,0.0002995,2]
[313867821,1707759045754,-1879.13,0.00029964,2]
[313867823,1707759045764,-542.98,0.0002998,120]
[313867825,1707759045774,-478.0,0.00029981,2]
[313867827,1707759045784,-948.25,0.0002999,2]
[313867829,1707759045794,-50000.0,0.0003,2]
[313867831,1707759045803,-1176.20171541,0.0003,4]
[313867833,1707759045813,-155.0,0.0003,2]
[313867836,1707759045823,-6381.22919046,0.0003,2]
[313867839,1707759045833,-814.67910339,0.0003,4]
[313867842,1707759045842,-271.93532452,0.0003,4]
[313867846,1707759045852,-1974.49802756,0.0003,4]
[313867849,1707759045862,-1817.46566731,0.0003,4]
[313867850,1707759045872,-2655.70887327,0.0003,4]
[313867853,1707759045881,-155.0,0.0003,2]
[313867855,1707759045891,-911.20722036,0.0003,4]
[313867857,1707759045900,-19148.63208535,0.0003,4]
[313867859,1707759045914,-155.0,0.0003,4]
[313867861,1707759045923,-178.00257215,0.0003,4]
[313867863,1707759045933,-38416.20880633,0.0003,5]
[313867866,1707759045948,-15010.68516,0.0003,5]
[313867868,1707759045960,-642.91402176,0.0003,5]
[313867870,1707759045971,-27585.35042686,0.0003,5]
[313867873,1707759045992,-10935.70479155,0.0003,5]
[313867875,1707759046001,-654.30362233,0.0003,2]
[313867876,1707759046013,-1514.63596567,0.0003,2]
[313867877,1707759046024,-3000.0,0.0003,2]
[313867879,1707759046033,-288.32105397,0.0003,2]
[313867881,1707759046046,-491.80240281,0.0003,2]
[313867883,1707759046056,-736.47019443,0.0003,3]
[313867885,1707759046066,-1693.74652,0.0003,2]
[313867887,1707759046076,-1693.74653,0.0003,2]
[313867889,1707759046085,-1693.74653,0.0003,2]
[313867891,1707759046095,-1693.74652,0.0003,2]
[313867893,1707759046105,-1693.74652,0.0003,2]
[313867895,1707759046114,-1693.74652,0.0003,2]
[313867897,1707759046127,-153.87,0.0003,2]
[313867899,1707759046137,-153.87,0.0003,2]
[313867901,1707759046146,-205.0,0.0003,2]
[313867903,1707759046156,-1000.0,0.0003,2]
[313867905,1707759046165,-69.34241301,0.0003,2]
[313867908,1707759046178,-930.65758699,0.0003,2]
[313867910,1707759046191,-1000.0,0.0003,2]
[313867912,1707759046201,-128221.86109522,0.0003,2]
[313867914,1707759046214,-5014.3093,0.0003,2]
[313867919,1707759046236,-3692.35337584,0.0003,2]
[313867922,1707759046248,-24928.13428949,0.0003,2]
[313867925,1707759046260,-102718.34193945,0.0003,2]
[313867928,1707759046270,-3000.0,0.0003001,2]
[313867931,1707759046280,-5472.481679,0.0003002,2]
[313867934,1707759046289,-2000.0,0.000301,2]
[313867938,1707759046299,-500.0,0.00030136,20]
[313867942,1707759046309,-500.0,0.00030136,20]
[313867945,1707759046318,-500.0,0.00030136,20]
[313867947,1707759046328,-500.0,0.00030136,20]
[313867950,1707759046337,-500.0,0.00030136,20]
[313867952,1707759046347,-150.0,0.00030137,2]
[313867955,1707759046356,-500.0,0.00030152,2]
[313867958,1707759046365,-1879.13,0.00030238,2]
[313867962,1707759046377,-200.0,0.00030287,2]
[313867965,1707759046387,-200.0,0.00030287,3]
[313867968,1707759046397,-17504.0,0.000303,3]
[313867971,1707759046409,-837.06383198,0.00030427,5]
[313867974,1707759046419,-17504.0,0.000305,5]
[313867977,1707759046429,-1879.13,0.00030512,2]
[313867980,1707759046443,-158.0,0.00030658,5]
[313867984,1707759046452,-151.0,0.00030669,120]
[313867988,1707759046462,-500.0,0.00030694,2]
[313867991,1707759046475,-1879.13,0.00030786,2]
[313867994,1707759046485,-2000.0,0.000308,4]
[313867997,1707759046495,-500.0,0.00030804,2]
[313868000,1707759046505,-3663.30566803,0.00030838,30]
[313868003,1707759046515,-183.08,0.00030863,2]
[313868006,1707759046525,-167.5037557,0.00030897,2]
[313868009,1707759046535,-177432.99894608,0.000309,2]
[313868014,1707759046548,-2638.20054226,0.000309,2]
[313868017,1707759046560,-637.50858543,0.000309,2]
[313868020,1707759046571,-5812.29302479,0.000309,2]
[313868028,1707759046607,-101563.10500144,0.000309,2]
[313868031,1707759046617,-150.0,0.0003093,2]
[313868035,1707759046629,-11688.31584043,0.00030932,2]
[313868037,1707759046639,-402.65729933,0.00030932,2]
[313868040,1707759046649,-500.0,0.0003098,120]
[313868043,1707759046659,-50000.0,0.00031,2]
[313868045,1707759046668,-258.00607391,0.00031,4]
[313868048,1707759046678,-642.08889258,0.00031,7]
[313868050,1707759046687,-1400.0,0.00031,3]
[313868052,1707759046697,-800.0,0.00031006,2]
[313868054,1707759046706,-1879.13,0.0003106,2]
[313868056,1707759046715,-500.0,0.00031235,2]
[313868058,1707759046725,-151.0,0.00031295,30]
[313868060,1707759046734,-1879.13,0.00031334,2]
[313868062,1707759046744,-200.0,0.00031349,2]
[313868064,1707759046753,-206.0,0.00031398,15]
[313868066,1707759046763,-1000.0,0.000315,2]
[313868068,1707759046772,-1879.13,0.00031608,2]
[313868070,1707759046782,-154.0,0.00031625,2]
[313868072,1707759046791,-478.0,0.00031625,2]
[313868074,1707759046801,-167.25,0.00031644,2]
[313868076,1707759046811,-180.0,0.00031644,2]
[313868077,1707759046821,-205.52,0.00031667,2]
[313868078,1707759046830,-187.0,0.000317,4]
[313868079,1707759046840,-738.93491813,0.000317,2]
[313868080,1707759046850,-150.0,0.00031723,2]
[313868082,1707759046860,-258.52891174,0.00031775,2]
[313868085,1707759046870,-500.0,0.00031776,2]
[313868088,1707759046881,-200.0,0.00031776,2]
[313868090,1707759046890,-61413.2046749,0.000318,3]
[313868092,1707759046902,-1879.28527243,0.00031882,2]
[313868094,1707759046911,-151.0,0.00031933,7]
[313868096,1707759046921,-237.44,0.00031977,2]
[313868098,1707759046931,-500.0,0.0003198,120]
[313868100,1707759046941,-50000.0,0.00032,2]
[313868101,1707759046950,-13160.34354298,0.00032,4]
[313868102,1707759046960,-900.0,0.00032,4]
[313868103,1707759046969,-200.0,0.000322,5]
[313868104,1707759046979,-837.06383198,0.00032337,6]
[313868105,1707759046989,-800.0,0.00032448,2]
[313868106,1707759046999,-152.0,0.00032482,3]
[313868107,1707759047009,-153.87,0.000325,2]
[313868108,1707759047018,-153.87,0.000325,2]
[313868109,1707759047027,-153.87,0.000325,2]
[313868110,1707759047036,-153.87,0.000325,2]
[313868111,1707759047046,-150.0,0.00032516,2]
[313868112,1707759047056,-11688.31584043,0.00032526,2]
[313868113,1707759047066,-402.65729933,0.00032526,2]
[313868114,1707759047076,-2183.73646844,0.00032534,4]
[313868115,1707759047086,-151.0,0.00032585,4]
[313868116,1707759047095,-200.0,0.000327,5]
[313868117,1707759047105,-16675.00343608,0.0003278,5]
[313868118,1707759047115,-1000.0,0.000328,2]
[313868119,1707759047125,-7817.41708999,0.00032876,14]
[313868120,1707759047135,-1000.0,0.00032876,7]
[313868122,1707759047145,-658.21,0.00032876,2]
[313868125,1707759047155,-658.21,0.00032876,2]
[313868127,1707759047165,-658.21,0.00032876,2]
[313868129,1707759047175,-658.21,0.00032876,2]
[313868131,1707759047185,-658.21,0.00032876,2]
[313868133,1707759047194,-658.21,0.00032876,2]
[313868135,1707759047203,-658.21,0.00032876,2]
[313868137,1707759047212,-658.21,0.00032876,2]
[313868138,1707759047222,-658.21,0.00032876,2]
[313868140,1707759047231,-658.21,0.00032876,2]
[313868142,1707759047241,-658.21,0.00032876,2]
[313868144,1707759047251,-658.21,0.00032876,2]
[313868147,1707759047260,-658.21,0.00032876,2]
[313868149,1707759047270,-658.21,0.00032876,2]
[313868151,1707759047280,-658.21,0.00032876,2]
[313868153,1707759047291,-658.21,0.00032876,2]
[313868155,1707759047303,-658.21,0.00032876,2]
[313868158,1707759047323,-658.21,0.00032876,2]
[313868160,1707759047333,-658.21,0.00032876,2]
[313868162,1707759047343,-658.21,0.00032876,2]
[313868164,1707759047352,-658.21,0.00032876,2]
[313868166,1707759047362,-658.21,0.00032876,2]
[313868168,1707759047372,-658.21,0.00032876,2]
[313868170,1707759047381,-658.21791564,0.00032876,2]
[313868172,1707759047390,-500.0,0.00032876,2]
[313868174,1707759047401,-500.0,0.00032876,2]
[313868176,1707759047413,-500.0,0.00032876,2]
[313868178,1707759047422,-778.0,0.00032876,2]
[313868180,1707759047432,-567.75,0.00032876,2]
[313868182,1707759047442,-559.15873602,0.00032876,2]
[313868184,1707759047454,-500.0,0.00032876,2]
[313868186,1707759047463,-500.0,0.00032876,2]
[313868188,1707759047472,-500.0,0.00032876,2]
[313868190,1707759047481,-500.0,0.00032876,2]
[313868192,1707759047491,-497.93878606,0.00032876,2]
[313868194,1707759047501,-500.0,0.00032876,2]
[313868196,1707759047512,-500.0,0.00032876,2]
[313868197,1707759047521,-500.0,0.00032876,2]
[313868198,1707759047531,-500.0,0.00032876,2]
[313868199,1707759047541,-500.0,0.00032876,2]
[313868200,1707759047551,-500.0,0.00032876,2]
[313868201,1707759047560,-500.0,0.00032876,2]
[313868202,1707759047570,-512.27,0.00032876,2]
[313868203,1707759047579,-500.0,0.00032876,2]
[313868204,1707759047589,-500.0,0.00032876,2]
[313868205,1707759047598,-500.0,0.00032876,2]
[313868206,1707759047608,-500.0,0.00032876,2]
[313868207,1707759047617,-500.0,0.00032876,2]
[313868208,1707759047629,-500.0,0.00032876,2]
[313868209,1707759047638,-500.0,0.00032876,2]
[313868211,1707759047648,-500.0,0.00032876,2]
[313868213,1707759047657,-536.30892035,0.00032876,2]
[313868215,1707759047667,-228.92,0.00032877,2]
[313868217,1707759047676,-633.73,0.0003288,2]
[313868219,1707759047685,-633.73,0.0003288,2]
[313868221,1707759047694,-633.73,0.0003288,2]
[313868223,1707759047704,-633.73,0.0003288,2]
[313868225,1707759047714,-633.73,0.0003288,2]
[313868227,1707759047723,-2000.0,0.000329,2]
[313868229,1707759047734,-4187.76563956,0.000329,2]
[313868234,1707759047784,-3812.23436044,0.000329,2]
[313868236,1707759047794,-499.9,0.0003298,120]
[313868238,1707759047803,-31.23659282,0.00033,3]
[313868469,1707759053780,-270.45978453,0.00033,3]
[313868470,1707759053816,-500.0,0.00032876,2]
[313868471,1707759053827,-500.0,0.00032876,2]
[313868472,1707759053838,-15473.46700159,0.00033,3]
[313868473,1707759053850,-34224.83662106,0.00033,3]
[313868474,1707759053861,-559.0359626,0.00033,2]
[313868475,1707759053874,-840.9640374,0.00033,2]
[313868476,1707759053888,-492.84463091,0.00033,4]
[313868477,1707759053899,-6414.61118895,0.00033,4]
[313868478,1707759053909,-203.18343961,0.00033,2]
[313868479,1707759053919,-1450.0,0.00033,3]
[313868480,1707759053929,-778.0,0.0003315,2]
[313868481,1707759053939,-567.75,0.0003315,2]
[313868482,1707759053949,-443.8247,0.0003315,2]
[313868483,1707759053959,-500.0,0.0003315,2]
[313868484,1707759053968,-500.0,0.0003315,2]
[313868485,1707759053979,-201.7,0.0003315,2]
[313868486,1707759053990,-500.0,0.0003315,2]
[313868487,1707759053999,-500.0,0.0003315,2]
[313868488,1707759054009,-500.0,0.0003315,2]
[313868489,1707759054019,-512.27,0.0003315,2]
[313868490,1707759054029,-500.0,0.0003315,2]
[313868491,1707759054039,-500.0,0.0003315,2]
[313868492,1707759054049,-493.72620432,0.0003315,2]
[313868493,1707759054059,-500.0,0.0003315,2]
[313868494,1707759054069,-500.0,0.0003315,2]
[313868495,1707759054079,-500.0,0.0003315,2]
[313868496,1707759054090,-500.0,0.0003315,2]
[313868497,1707759054100,-500.0,0.0003315,2]
[313868498,1707759054111,-500.0,0.0003315,2]
[313868499,1707759054122,-206.0,0.00033185,18]
[313868500,1707759054134,-200.0,0.000332,6]
[313868501,1707759054144,-151.0,0.0003325,2]
[313868502,1707759054155,-154.0,0.00033268,2]
[313868503,1707759054165,-478.0,0.00033268,2]
[313868504,1707759054176,-150.0,0.00033309,2]
[313868505,1707759054186,-500.0,0.00033325,2]
[313868506,1707759054197,-778.0,0.00033424,2]
[313868507,1707759054208,-567.75,0.00033424,2]
[313868508,1707759054219,-268.12,0.00033424,2]
[313868509,1707759054231,-500.0,0.00033424,2]
[313868510,1707759054242,-500.0,0.00033424,2]
[313868511,1707759054253,-500.0,0.00033424,2]
[313868512,1707759054264,-500.0,0.00033424,2]
[313868513,1707759054275,-512.27,0.00033424,2]
[313868514,1707759054287,-500.0,0.00033424,2]
[313868515,1707759054300,-500.0,0.00033424,2]
[313868516,1707759054310,-500.0,0.00033424,2]
[313868517,1707759054321,-500.0,0.00033424,2]
[313868518,1707759054333,-500.0,0.00033424,2]
[313868519,1707759054344,-500.0,0.00033424,2]
[313868520,1707759054356,-500.0,0.00033424,2]
[313868521,1707759054367,-568.19736151,0.00033493,2]
[313868522,1707759054381,-159.51374957,0.00033493,4]
[313868523,1707759054393,-200.0,0.00033494,2]
[313868524,1707759054406,-591.08,0.000335,2]
[313868525,1707759054417,-591.08,0.000335,2]
[313868526,1707759054427,-591.08,0.000335,2]
[313868527,1707759054436,-591.08,0.000335,2]
[313868528,1707759054447,-591.08,0.000335,2]
[313868529,1707759054458,-591.08,0.000335,2]
[313868530,1707759054468,-591.08,0.000335,2]
[313868531,1707759054479,-591.08,0.000335,2]
[313868532,1707759054490,-591.08,0.000335,2]
[313868533,1707759054502,-591.08,0.000335,2]
[313868534,1707759054511,-591.08,0.000335,2]
[313868535,1707759054521,-591.08,0.000335,2]
[313868536,1707759054531,-7.48650262,0.000335,2]
[313868537,1707759054889,-210.0,0.000282,2]
[313868538,1707759054900,-311.05323918,0.00028998,2]
[313868539,1707759054910,-843.95218886,0.00028999,2]
[313868540,1707759054921,-299558.0257908,0.00028999,2]
[313868541,1707759054934,-1190.73171,0.00028999,2]
[313868542,1707759054951,-1997.2320567,0.00028999,2]
[313868543,1707759055177,500.0,0.00022,2]
[313868544,1707759060093,500.0,0.00022,3]
[313868545,1707759081706,395.50245846,0.0002,2]
[313868546,1707759107586,201.04273351,0.00022,4]
[313868547,1707759124304,205.0,0.00021459,2]
[313868562,1707759317456,175.02,0.00018375,2]
[313868563,1707759381722,1500.0,0.00022782,7]
[313868564,1707759484222,205.0,0.00022387,2]
[313868565,1707759573939,206.0,0.00022387,2]
[313868566,1707759664416,207.0,0.00022387,2]
[313868569,1707759694647,251.84,0.0002067,2]
[313868574,1707759767628,-2157.90997305,0.00022507,2]
[313868575,1707759767649,-625.14615193,0.00022507,2]
[313868576,1707759767669,-563.5398554,0.00022507,2]
[313868577,1707759767689,-8346.84,0.00022508,2]
[313868578,1707759767709,-792.93216418,0.0002253,2]
[313868579,1707759767728,-200.0,0.00022531,2]
[313868580,1707759767748,-155.0,0.00022569,2]
[313868581,1707759767767,-2332.16460008,0.00022569,2]
[313868582,1707759767786,-200.0,0.0002257,2]
[313868583,1707759771610,700.84619272,0.00022506,2]
[313868585,1707759785624,418.33545157,0.00021971,2]
[313868587,1707759806984,160.11519403,0.00022514,2]
[313868590,1707759878074,250.0,0.00022568,2]
[313868592,1707759904973,2000.0,0.00022535,2]
[313868593,1707759919358,150.0,0.00022535,2]
[313868594,1707759921483,1771.8,0.00022535,2]
[313868596,1707759940155,200.0,0.00022555,2]
[313868597,1707760002042,1315.37041704,0.00022526,2]
[313868598,1707760015112,-3224.96085548,0.00022525,2]
[313868605,1707760111686,-300.0,0.00022507,2]
[313868606,1707760111717,-150.0,0.00022507,2]
[313868607,1707760111748,-1749.55,0.00022508,2]
[313868608,1707760111775,-10000.0,0.00022508,2]
[313868609,1707760111800,-419.96185592,0.00022525,2]
[313868610,1707760111829,-5887.27958296,0.00022526,2]
[313868612,1707760111858,-250.0,0.00022529,2]
[313868613,1707760111885,-268.68,0.00022616,2]
[313868614,1707760111914,-160.0,0.00022616,2]
[313868615,1707760111942,-350.21,0.00022616,2]
[313868616,1707760111973,-160.58,0.00022666,2]
[313868617,1707760111998,-235.29,0.00022682,2]
[313868618,1707760112025,-3079.11,0.00022683,2]
[313868619,1707760112053,-335.78,0.00022683,2]
[313868620,1707760112080,-1907.15,0.00022701,2]
[313868621,1707760112106,-175.17,0.00022703,2]
[313868622,1707760112133,-150.99,0.00022703,2]
[313868623,1707760112159,-1338.27,0.00022736,2]
[313868624,1707760112186,-161.99,0.00022792,2]
[313868625,1707760112216,-715.26,0.00022851,2]
[313868626,1707760112242,-727.74,0.00022853,2]
[313868627,1707760112271,-499.99,0.00022853,2]
[313868628,1707760112296,-192.0461092,0.00022855,2]
[313868629,1707760112324,-161.99,0.000229,2]
[313868630,1707760112351,-716.85,0.00022928,2]
[313868631,1707760112378,-251.84,0.00022933,2]
[313868632,1707760112404,-731.32,0.00022951,2]
[313868633,1707760112430,-716.74,0.00022953,2]
[313868634,1707760112460,-711.84,0.00022955,2]
[313868635,1707760112486,-719.53,0.00022956,2]
[313868636,1707760112513,-709.97,0.00022956,2]
[313868637,1707760112539,-729.84,0.00022959,2]